bitfinex-derivatives/quotes_ETHF0:USTF0_20250531
["timestamp","ask_amount","ask_price","bid_price","bid_amount"]
[1748697850386,0.00591891,2534.3,2534.2,0.78883]
[1748697850686,3.2078,2534.7,2534.6,0.7887]
[1748697853286,3.2078,2534.7,2534.6,1.491]
[1748697853694,0.00591891,2534.9,2534.8,0.78864]
[1748697853880,0.00591891,2534.9,2534.8,5.15064]
[1748697854190,2.67499,2535.6,2534.8,5.15064]
[1748697854191,3.2078,2535.7,2535.3,0.78848]
[1748697854493,1.3382,2535.6,2535.5,0.7884]
[1748697855992,2.12659,2535.6,2535.5,0.7884]
[1748697856793,1.3382,2535.6,2535.5,0.7884]
[1748697857286,3.2078,2535.7,2535.6,0.78839]
[1748697857785,3.2078,2535.7,2535.6,5.14939]
[1748697858289,0.00387399,2535.8,2535.7,0.78836]
[1748697859391,0.00387399,2535.8,2535.7,1.50406]
[1748697859584,0.00387399,2535.8,2535.7,5.86506]
[1748697859585,0.79220399,2535.8,2535.7,5.86506]
[1748697859790,0.00387399,2535.8,2535.7,5.86506]
[1748697860091,1.25177399,2535.8,2535.7,5.86506]
[1748697860999,2.04010399,2535.8,2535.7,1.50406]
[1748697861297,2.04010399,2535.8,2535.7,0.78836]
[1748697862603,1.25177399,2535.8,2535.7,0.78836]
[1748697863795,0.00387399,2535.8,2535.7,0.78836]
[1748697864193,1.35957399,2535.8,2535.7,0.78836]
[1748697868604,0.00387399,2535.8,2535.7,0.78836]
[1748697868801,0.00387399,2535.8,2535.7,5.14836]
[1748697869099,0.00387399,2535.8,2535.5,0.07155339]
[1748697869297,1.34247399,2535.8,2535.7,0.78836]
[1748697870603,2.13080399,2535.8,2535.7,0.78836]
[1748697871294,0.78839,2535.7,2535.6,0.78838]
[1748697871495,0.78839,2535.6,2535.5,0.85994339]
[1748697871892,1.49659,2535.6,2535.5,0.07155339]
[1748697872296,7.79439,2535.6,2535.5,0.07155339]
[1748697872499,2.79439,2535.6,2535.5,0.07155339]
[1748697872994,0.78851,2535.3,2535.2,0.78849]
[1748697873195,0.78854,2535.2,2535.1,0.78853]
[1748697873499,0.78854,2535.2,2535.0,0.78855]
[1748697873500,0.78857,2535.1,2535.0,0.78855]
[1748697873903,2.07463,2535.2,2535.1,0.78855]
[1748697874098,0.78853,2535.2,2535.1,0.78855]
[1748697874400,0.78856,2535.1,2535.0,0.78856]
[1748697875097,0.78853,2535.2,2535.1,0.78852]
[1748697876402,3.2078,2535.4,2535.0,0.78855]
[1748697876403,0.78856,2535.1,2535.0,0.78855]
[1748697876605,0.78859,2535.0,2534.7,1.4263]
[1748697876805,0.78864,2534.9,2534.8,0.78863]
[1748697877202,2.64032,2535.2,2534.7,0.7057]
[1748697877408,0.78864,2534.9,2534.8,0.78862]
[1748697877808,0.78859,2535.0,2534.9,0.78859]
[1748697878001,1.45559,2535.0,2534.9,0.78859]
[1748697879509,0.78864,2534.9,2534.8,0.78862]
[1748697880308,0.78864,2534.9,2534.7,0.7057]
[1748697880309,1.4556,2535.0,2534.9,0.78861]
[1748697881914,0.78864,2534.9,2534.8,0.78862]
[1748697882409,1.4556,2535.0,2534.9,0.78861]
[1748697883514,0.667,2535.0,2534.9,0.78861]
[1748697883917,1.45558,2535.0,2534.9,0.78861]
[1748697884612,0.78865,2534.9,2534.8,0.78861]
[1748697884914,2.09105,2534.9,2534.8,0.78861]
[1748697885411,1.3024,2534.9,2534.8,0.78861]
[1748697887313,3.2078,2535.1,2535.0,0.78858]
[1748697888324,3.99635,2535.1,2535.0,0.78858]
[1748697888618,0.78858,2535.0,2534.9,2.25359]
[1748697888808,2.04598,2535.0,2534.9,2.25359]
[1748697889316,2.04598,2535.0,2534.9,1.49849]
[1748697893115,2.04598,2535.0,2534.9,0.78859]
[1748697893718,0.78861,2534.9,2534.8,0.07155339]
[1748697893909,2.02741,2534.9,2534.8,0.07155339]
[1748697894512,2.02741,2534.9,2534.8,0.86019339]
[1748697895515,2.02741,2534.9,2534.8,0.07155339]
[1748697897916,1.2388,2534.9,2534.8,0.86019339]
[1748697898121,4.76574,2535.2,2535.1,0.78855]
[1748697898314,3.2078,2535.2,2535.1,0.78855]
[1748697898921,3.99632,2535.2,2535.1,0.78855]
[1748697899218,3.2078,2535.2,2535.1,0.78855]
[1748697899622,3.99632,2535.2,2535.1,0.78855]
[1748697900316,0.78851,2535.3,2535.2,0.78852]
[1748697900714,0.78854,2535.2,2535.1,0.78852]
[1748697901017,0.78858,2535.1,2535.0,0.78855]
[1748697901817,4.4854,2535.2,2535.1,0.78855]
[1748697902021,3.2078,2535.2,2535.1,0.78855]
[1748697902527,3.99632,2535.2,2535.1,0.78855]
[1748697902724,3.2078,2535.2,2535.1,0.78855]
[1748697903322,4.4854,2535.5,2535.4,0.78845]
[1748697903514,1.2776,2535.5,2535.4,0.78845]
[1748697903721,3.21167399,2535.8,2535.7,0.78836]
[1748697904117,0.00387399,2535.8,2535.7,0.78836]
[1748697910529,3.2078,2536.1,2536.0,0.78827]
[1748697910731,0.7882,2536.3,2536.2,0.7882]
[1748697911129,2.0926,2536.3,2536.2,0.7882]
[1748697911626,0.78822,2536.2,2536.1,0.78822]
[1748697911822,0.78824,2536.1,2536.0,5.04514891]
[1748697912027,2.09264,2536.1,2536.0,0.79414891]
[1748697912532,1.3044,2536.1,2536.0,0.79414891]
[1748697914234,0.78819,2536.3,2536.2,0.7882]
[1748697914439,2.10789,2536.3,2536.2,0.7882]
[1748697915134,0.78822,2536.2,2536.1,0.78821]
[1748697915330,2.10792,2536.2,2536.1,0.78821]
[1748697916834,1.3197,2536.2,2536.1,0.78821]
[1748697917740,1.3197,2536.2,2536.1,0.77959613]
[1748697918134,2.1079,2536.2,2536.1,0.77959613]
[1748697918335,1.3197,2536.2,2536.1,0.77959613]
[1748697919134,2.1079,2536.2,2536.1,0.77959613]
[1748697919733,2.10793,2536.2,2536.1,0.78824]
[1748697920645,2.30473,2536.2,2536.1,0.85979339]
[1748697920940,1.5165,2536.2,2536.1,0.85979339]
[1748697921740,2.3047,2536.2,2536.1,0.85979339]
[1748697922430,2.3047,2536.2,2536.1,0.07155339]
[1748697923341,2.3047,2536.2,2536.1,0.85979339]
[1748697923534,2.3047,2536.2,2536.1,0.07155339]
[1748697925843,1.97073,2536.0,2535.4,4.218]
[1748697926041,1.97073,2536.0,2535.6,0.78837]
[1748697926042,0.78839,2535.7,2535.6,0.78837]
[1748697926239,0.78842,2535.6,2535.5,0.7884]
[1748697926544,0.78841,2535.6,2535.5,0.7884]
[1748697927041,0.78838,2535.7,2535.6,0.78837]
[1748697927753,0.78841,2535.6,2535.5,0.7884]
[1748697928156,0.78844,2535.5,2535.4,0.78843]
[1748697928555,0.78845,2535.4,2535.3,0.00591891]
[1748697932049,0.78863,2534.9,2534.6,3.9846]
[1748697932352,0.78863,2534.9,2534.8,0.78863]
[1748697933255,0.78858,2535.0,2534.9,0.78858]
[1748697933557,0.8056,2535.1,2534.6,3.99051891]
[1748697933855,0.78862,2534.9,2534.8,0.7886]
[1748697935346,0.78865,2534.8,2534.7,0.78864]
[1748697935552,0.78863,2534.9,2534.8,0.78862]
[1748697935852,0.78861,2535.0,2534.9,0.7886]
[1748697938862,0.78865,2534.9,2534.8,0.78863]
[1748697940260,0.7886,2535.0,2534.9,0.78859]
[1748697941361,0.9856,2535.0,2534.9,0.78859]
[1748697941561,0.197,2535.0,2534.9,0.78859]
[1748697941759,0.98558,2535.0,2534.9,0.78859]
[1748697942357,0.197,2535.0,2534.9,0.78859]
[1748697942958,0.197,2535.0,2534.9,1.59659]
[1748697943163,3.2078,2535.2,2535.1,0.78855]
[1748697943867,3.2078,2535.2,2535.1,1.57215]
[1748697945669,0.78847,2535.4,2535.3,0.78848]
[1748697946061,1.2664,2535.4,2535.3,0.86003339]
[1748697946762,3.2078,2535.5,2535.4,0.78845]
[1748697946974,0.78837,2535.7,2535.6,0.78837]
[1748697947573,2.05477,2535.7,2535.6,0.78837]
[1748697947758,3.21371891,2535.8,2535.7,0.78836]
[1748697948261,4.00205891,2535.8,2535.7,0.78836]
[1748697948462,3.21371891,2535.8,2535.7,0.78836]
[1748697948662,0.00591891,2535.8,2535.7,0.78836]
[1748697948864,0.00591891,2535.8,2535.7,2.12296]
[1748697949466,0.00591891,2535.8,2535.7,7.12296]
[1748697950168,1.2664,2536.3,2536.2,0.7882]
[1748697951373,2.05457,2536.3,2536.2,0.7882]
[1748697951574,1.2664,2536.3,2536.2,0.7882]
[1748697951772,2.05457,2536.3,2536.2,0.7882]
[1748697951976,1.2664,2536.3,2536.1,1.5988]
[1748697952181,1.2664,2536.3,2536.2,0.7882]
[1748697952866,3.21371891,2536.5,2536.4,0.78814]
[1748697953981,4.00182891,2536.5,2536.4,0.78814]
[1748697954179,3.21371891,2536.5,2536.4,0.78814]
[1748697954974,0.00591891,2536.5,2536.4,0.78814]
[1748697955275,4.00182891,2536.5,2536.4,0.78814]
[1748697955773,3.21371891,2536.5,2536.1,1.5988]
[1748697955973,2.13828,2536.4,2536.3,0.78814]
[1748697956878,5.34608,2536.4,2536.3,0.78814]
[1748697957580,4.5579,2536.4,2536.3,0.78814]
[1748697959081,1.3501,2536.4,2536.3,0.78814]
[1748697959383,2.13824,2536.4,2536.3,0.78814]
[1748697960178,1.3501,2536.4,2536.3,0.78814]
[1748697960476,2.13824,2536.4,2536.3,0.78814]
[1748697961276,1.3501,2536.4,2536.3,0.78814]
[1748697962081,4.00184891,2536.5,2536.4,0.78814]
[1748697962287,0.00591891,2536.5,2536.4,0.78814]
[1748697963779,3.2078,2536.8,2536.7,0.78805]
[1748697964081,3.2078,2537.2,2536.8,0.78802]
[1748697964283,4.5217,2537.2,2537.1,0.78793]
[1748697964474,3.2078,2537.5,2537.4,0.78783]
[1748697964873,5.17735,2537.5,2537.0,0.78795]
[1748697965079,2.10175,2537.4,2537.3,0.78786]
[1748697965478,0.78786,2537.3,2537.2,0.78787]
[1748697965676,1.96963,2537.4,2536.9,4.213]
[1748697965878,3.2078,2537.1,2537.0,0.78796]
[1748697966077,1.3139,2537.2,2537.1,0.78793]
[1748697966273,3.2078,2537.7,2537.0,1.3098]
[1748697966479,0.7878,2537.5,2537.4,0.78781]
[1748697966781,0.7878,2537.5,2537.3,5.00084]
[1748697966974,1.3139,2537.4,2537.1,0.77391891]
[1748697967286,3.99569,2537.2,2537.1,0.00591891]
[1748697967484,3.2078,2537.2,2537.1,0.79384891]
[1748697967790,3.99569,2537.2,2537.1,0.79384891]
[1748697968082,3.2078,2537.2,2537.1,0.79384891]
[1748697968980,3.2078,2537.5,2537.4,0.78783]
[1748697969178,3.99562,2537.5,2537.2,1.3436]
[1748697969382,1.2325,2537.4,2537.3,0.78784]
[1748697969881,3.2078,2537.8,2537.2,1.3436]
[1748697970082,0.78781,2537.5,2537.4,0.78783]
[1748697970580,0.78776,2537.7,2537.6,0.78777]
[1748697970789,1.3597,2537.7,2537.4,0.78781]
[1748697970995,0.78778,2537.6,2537.5,0.7878]
[1748697971781,3.2078,2537.8,2537.4,0.7503]
[1748697971782,3.2078,2537.8,2537.7,0.78774]
[1748697971981,0.78771,2537.8,2537.7,0.78772]
[1748697972182,3.99551,2537.8,2537.6,0.78775]
[1748697972383,1.3597,2537.7,2537.6,0.78775]
[1748697975282,3.5489,2538.2,2537.7,0.78774]
[1748697975283,3.2078,2538.1,2537.7,0.78774]
[1748697975482,3.2078,2538.1,2537.7,0.78771]
[1748697975787,0.78772,2537.8,2537.6,4.204]
[1748697975984,1.2528,2537.7,2537.6,4.204]
[1748697976196,1.2528,2537.7,2537.6,4.99177]
[1748697977287,0.78766,2538.0,2537.6,4.204]
[1748697977595,1.2676,2538.0,2537.9,0.78765]
[1748697978096,3.2078,2538.1,2538.0,0.78765]
[1748697978895,0.78766,2538.0,2537.9,0.78765]
[1748697979087,2.05526,2538.0,2537.9,0.78765]
[1748697979286,1.2676,2538.0,2537.9,0.78765]
[1748697979591,3.2078,2538.1,2538.0,0.78765]
[1748697979786,3.2078,2538.1,2537.8,6.17327]
[1748697979787,4.537,2538.4,2537.8,7.4118]
[1748697979985,0.7575,2538.6,2538.5,0.78749]
[1748697980185,2.11666,2538.6,2538.5,0.78749]
[1748697980879,0.7875,2538.5,2538.4,0.78751]
[1748697981089,2.1167,2538.5,2538.4,0.78751]
[1748697981491,0.78752,2538.4,2538.3,1.57654]
[1748697981786,2.11672,2538.4,2538.3,0.78754]
[1748697981987,1.3292,2538.4,2538.3,0.78754]
[1748697982289,2.11672,2538.4,2538.3,0.78754]
[1748697982486,1.3292,2538.4,2538.3,0.78754]
[1748697983887,1.3292,2538.4,2538.2,4.203]
[1748697983888,3.2078,2538.7,2538.5,0.78747]
[1748697984083,1.3152,2538.6,2538.5,0.78747]
[1748697984283,1.3152,2538.6,2538.1,0.7444]
[1748697984488,0.7876,2538.2,2538.1,0.78759]
[1748697984688,0.78753,2538.4,2538.3,0.78753]
[1748697984991,0.78757,2538.3,2537.9,4.992]
[1748697985190,1.3152,2538.3,2537.9,4.992]
[1748697985495,6.3152,2538.3,2537.7,3.2078]
[1748697985694,0.78774,2537.7,2537.6,0.85929339]
[1748697985996,3.2078,2537.9,2537.6,0.85929339]
[1748697986198,1.3125,2537.8,2537.7,0.78774]
[1748697987501,0.78765,2538.0,2537.9,0.78767]
[1748697987797,2.10013,2538.1,2537.9,0.78767]
[1748697987994,1.3125,2538.1,2537.7,1.3014]
[1748697988402,1.3125,2538.1,2538.0,0.78765]
[1748697991311,0.78766,2538.0,2537.9,0.78767]
[1748697991508,0.78765,2538.0,2537.9,0.78767]
[1748697991812,2.10014,2538.1,2538.0,0.78765]
[1748697992011,0.78766,2538.0,2537.9,0.78767]
[1748697992309,1.3516,2538.0,2537.9,0.78767]
[1748697996215,0.78772,2537.8,2537.7,0.78773]
[1748697996408,0.7877,2537.9,2537.7,0.78773]
[1748697996608,0.78775,2537.7,2537.6,0.78776]
[1748697996907,0.7878,2537.5,2537.4,0.78783]
[1748697997214,0.78781,2537.5,2537.4,0.78781]
[1748697997611,2.14019,2537.6,2537.5,0.7878]
[1748697998408,2.14017,2537.6,2537.5,0.7878]
[1748697998615,1.3524,2537.6,2537.1,10.14549891]
[1748697998811,2.14019,2537.6,2537.5,0.7878]
[1748697999706,2.14018,2537.6,2537.5,0.7878]
[1748698000115,1.3524,2537.6,2537.5,0.7878]
[1748698001513,3.2078,2537.8,2537.7,0.78774]
[1748698002113,3.99551,2537.8,2537.7,0.78774]
[1748698002416,3.99551,2537.8,2537.6,0.78775]
[1748698002417,0.78776,2537.7,2537.6,0.78775]
[1748698002616,2.83676,2537.7,2537.6,0.78775]
[1748698004310,2.049,2537.7,2537.6,0.78775]
[1748698005218,1.236,2537.7,2537.6,0.78775]
[1748698005420,3.2078,2537.8,2537.7,0.78774]
[1748698006112,1.3499,2537.9,2537.8,0.78771]
[1748698006711,2.13758,2537.9,2537.8,0.78771]
[1748698006907,1.3499,2537.9,2537.8,0.78771]
[1748698007418,0.78773,2537.8,2537.7,0.78772]
[1748698007619,0.78774,2537.7,2537.6,0.78775]
[1748698007818,2.06604,2537.7,2537.6,0.78775]
[1748698009121,1.2783,2537.7,2537.6,0.78775]
[1748698009817,3.2078,2537.8,2537.7,0.85929339]
[1748698012616,1.2634,2538.0,2537.9,0.78768]
[1748698020222,3.2078,2538.1,2538.0,0.78765]
[1748698021525,6.89001,2538.1,2538.0,0.78765]
[1748698022025,6.1024,2538.1,2538.0,0.78765]
[1748698023231,4.5313,2538.1,2538.0,0.78765]
[1748698023922,3.2078,2538.1,2538.0,0.78765]
[1748698024630,4.4892,2538.1,2537.8,3.12873578]
[1748698024929,4.4892,2538.1,2537.7,0.07155339]
[1748698024930,2.31756,2538.0,2537.7,3.20028917]
[1748698025131,3.99551,2537.8,2537.7,3.12873578]
[1748698025624,10.28501,2537.8,2537.7,3.12873578]
[1748698025926,0.78776,2537.7,2537.6,0.78777]
[1748698026120,0.78776,2537.7,2537.2,5.09845578]
[1748698026121,0.78778,2537.6,2537.5,0.78778]
[1748698026322,0.78786,2537.3,2537.2,3.12873578]
[1748698026518,0.78786,2537.3,2537.2,3.91662578]
[1748698026732,0.78786,2537.3,2537.2,3.12873578]
[1748698027126,0.78789,2537.2,2537.1,0.00591891]
[1748698027321,5.28519,2537.2,2537.1,0.00591891]
[1748698028126,4.4973,2537.2,2537.1,0.79384891]
[1748698028326,27.2963,2537.2,2537.1,0.79384891]
[1748698028735,5.28519,2537.2,2537.1,0.00591891]
[1748698028940,23.89219,2537.2,2537.1,0.00591891]
[1748698030538,23.1043,2537.2,2537.1,0.00591891]
[1748698030727,23.89219,2537.2,2537.1,0.00591891]
[1748698031732,5.28519,2537.2,2537.1,0.79384891]
[1748698031939,23.1043,2537.2,2537.1,0.79384891]
[1748698032840,4.4973,2537.2,2537.1,0.79384891]
[1748698033031,23.89219,2537.2,2537.1,0.79384891]
[1748698034329,4.4973,2537.2,2537.1,0.79384891]
[1748698034732,23.1033,2537.2,2537.1,0.79384891]
[1748698035429,4.4973,2537.2,2537.1,0.79384891]
[1748698035631,23.1033,2537.2,2537.1,0.79384891]
[1748698035938,4.4973,2537.2,2537.1,0.79384891]
[1748698037539,3.2078,2537.2,2537.1,0.79384891]
[1748698040343,3.2078,2537.2,2537.1,0.8654023]
[1748698041939,4.5576,2537.2,2537.1,0.8654023]
[1748698042945,5.34549,2537.2,2537.1,0.8654023]
[1748698043943,2.13769,2537.2,2537.1,0.8654023]
[1748698044343,1.3498,2537.2,2537.1,0.8654023]
[1748698044838,2.13769,2537.2,2537.1,0.8654023]
[1748698045840,1.3498,2537.2,2537.1,0.8654023]
[1748698046845,2.13769,2537.2,2537.1,0.8654023]
[1748698047148,7.82392554,2539.7,2538.6,0.78746]
[1748698047343,7.82392554,2539.7,2539.6,0.78715]
[1748698048253,18.898,2539.9,2539.2,3.2078]
[1748698048448,19.68507,2539.9,2539.5,0.78716]
[1748698048644,18.898,2539.9,2539.5,0.78716]
[1748698048845,18.898,2539.9,2539.6,0.30127323]
[1748698049044,18.898,2539.9,2539.7,0.30407981]
[1748698049240,23.135,2539.8,2539.4,1.16512624]
[1748698049442,23.135,2539.8,2539.5,0.30376197]
[1748698049641,18.948,2539.8,2539.6,0.30375987]
[1748698049847,18.948,2539.8,2539.5,0.78716]
[1748698050049,18.948,2539.8,2539.6,0.30375643]
[1748698050250,18.948,2539.8,2539.4,1.95231624]
[1748698050444,18.948,2539.8,2539.4,0.78719]
[1748698050647,0.78706,2539.9,2539.4,0.78719]
[1748698050648,0.78706,2539.9,2539.5,0.30346313]
[1748698050855,3.2078,2539.6,2539.2,4.37292624]
[1748698051146,3.2078,2539.6,2539.2,5.16018624]
[1748698051347,3.2078,2539.6,2539.3,0.30323931]
[1748698051648,3.99497,2539.6,2539.4,0.30325208]
[1748698051853,3.99497,2539.6,2539.2,3.99507]
[1748698052054,3.2078,2539.6,2539.3,1.09048203]
[1748698052354,1.2779,2539.5,2539.3,0.78723]
[1748698052748,1.2779,2539.5,2539.4,0.78721]
[1748698053555,3.2078,2539.6,2539.5,0.78718]
[1748698053854,3.2078,2539.6,2539.4,0.7872]
[1748698054043,3.99495,2539.6,2539.3,1.3027]
[1748698054244,4.4857,2539.6,2539.3,2.08994]
[1748698054659,5.27285,2539.6,2539.3,2.08994]
[1748698055752,2.06505,2539.6,2539.3,1.3027]
[1748698055953,1.2779,2539.6,2539.4,0.78719]
[1748698056156,5.1743,2541.4,2539.9,1.9676]
[1748698056452,5.1743,2541.4,2539.7,1.9678]
[1748698056453,0.78676,2540.9,2540.7,3.2078]
[1748698056647,4.588,2541.0,2540.7,3.2078]
[1748698056852,1.2844,2540.8,2540.7,3.2078]
[1748698057051,2.07118,2540.8,2540.7,3.2078]
[1748698057346,1.2844,2540.8,2540.7,3.99461]
[1748698057556,5.8724,2540.8,2540.7,3.99461]
[1748698058052,1.2844,2540.8,2540.7,3.99461]
[1748698058253,4.588,2541.1,2541.0,0.78672]
[1748698058552,4.588,2541.1,2541.0,3.2078]
[1748698058951,5.9033,2541.1,2541.0,3.99452]
[1748698059155,4.0152,2541.7,2541.0,3.2078]
[1748698059156,0.8074,2541.7,2541.0,3.2078]
[1748698059343,4.587,2541.5,2541.1,3.2078]
[1748698059545,1.3153,2541.4,2541.1,3.2078]
[1748698059751,0.78664,2541.3,2541.1,3.2078]
[1748698060056,1.3153,2541.2,2541.1,3.2078]
[1748698060351,0.78657,2541.5,2541.1,3.99446]
[1748698060548,4.587,2541.4,2541.1,3.99446]
[1748698061051,6.68889,2541.4,2541.1,3.99446]
[1748698061357,0.78663,2541.3,2541.1,3.2078]
[1748698061555,0.78665,2541.2,2541.1,3.2078]
[1748698062154,0.78664,2541.3,2541.1,3.2078]
[1748698062344,2.12015,2541.2,2541.1,3.2078]
[1748698062553,1.3335,2541.2,2541.1,3.2078]
[1748698062756,2.12015,2541.2,2541.1,3.2078]
[1748698063756,0.78671,2541.1,2540.8,2.12866]
[1748698063960,2.12021,2541.1,2541.0,3.2078]
[1748698064553,0.78672,2541.0,2540.7,3.2078]
[1748698064748,0.78678,2540.8,2540.7,3.2078]
[1748698065852,0.78684,2540.6,2540.5,0.78686]
[1748698066153,2.02962,2540.7,2540.5,0.78686]
[1748698066756,0.78684,2540.6,2540.5,0.78686]
[1748698066952,1.2428,2540.7,2540.4,3.21370633]
[1748698067153,0.78685,2540.6,2540.4,4.00058633]
[1748698067561,0.78685,2540.6,2540.5,0.78687]
[1748698067762,2.02962,2540.7,2540.5,0.78687]
[1748698068762,0.78684,2540.6,2540.5,0.78687]
[1748698068963,2.02963,2540.7,2540.5,0.78687]
[1748698069172,1.2428,2540.7,2540.4,3.21370633]
[1748698069464,2.02963,2540.7,2540.5,0.78687]
[1748698069660,0.78684,2540.6,2540.5,0.78687]
[1748698069856,2.02962,2540.7,2540.6,0.78684]
[1748698070056,2.02961,2540.7,2540.6,0.78684]
[1748698070255,0.78686,2540.6,2540.4,4.00057633]
[1748698070565,0.78687,2540.5,2540.4,3.21370633]
[1748698071164,5.37187,2540.5,2540.4,3.21370633]
[1748698074066,1.2428,2540.7,2540.4,3.21370633]
[1748698074262,23.738,2540.6,2540.4,3.21370633]
[1748698074468,2.06379,2540.5,2540.4,3.21370633]
[1748698075962,7.06379,2540.5,2540.4,0.00590633]
[1748698076166,0.78701,2540.1,2540.0,3.2078]
[1748698076366,5.37201,2540.1,2540.0,3.2078]
[1748698076967,6.63511,2540.1,2540.0,3.2078]
[1748698077174,6.63511,2540.1,2540.0,3.51159856]
[1748698077475,6.63511,2540.1,2540.0,3.2078]
[1748698077676,6.63511,2540.1,2540.0,3.51164265]
[1748698077876,6.63511,2540.1,2540.0,3.5116461]
[1748698077877,2.05011,2540.1,2540.0,3.5116461]
[1748698078270,25.74811,2540.1,2540.0,3.5116461]
[1748698078674,25.74811,2540.1,2540.0,0.3038461]
[1748698078976,0.78707,2539.9,2539.8,1.17103257]
[1748698079172,0.78707,2539.9,2539.8,1.4749832]
[1748698079371,0.78707,2539.9,2539.8,1.47504459]
[1748698079571,0.78707,2539.9,2539.8,1.47504491]
[1748698079976,0.78707,2539.9,2539.8,1.47504215]
[1748698080174,0.78707,2539.9,2539.8,0.30991591]
[1748698080380,0.78707,2539.9,2539.8,0.30996901]
[1748698080879,0.78707,2539.9,2539.8,0.30996784]
[1748698081074,0.78707,2539.9,2539.8,0.00590633]
[1748698081278,0.78707,2539.9,2539.8,0.30999037]
[1748698081479,0.78707,2539.9,2539.8,0.00590633]
[1748698081677,0.78707,2539.9,2539.8,0.31008397]
[1748698082179,2.10957,2539.9,2539.8,0.31018255]
[1748698082479,2.10957,2539.9,2539.8,0.31014274]
[1748698082682,2.10957,2539.9,2539.8,0.31014672]
[1748698083681,2.10957,2539.9,2539.8,0.00590633]
[1748698084083,21.18057,2539.9,2539.8,0.00590633]
[1748698084983,21.18057,2539.9,2539.8,0.07745972]
[1748698085178,21.18057,2539.9,2539.8,0.38193025]
[1748698085379,2.10957,2539.9,2539.8,0.07745972]
[1748698085581,6.69557,2539.9,2539.8,0.38185122]
[1748698085779,25.74857,2539.9,2539.8,0.3818005]
[1748698085987,25.74857,2539.9,2539.8,0.38177324]
[1748698086286,25.74857,2539.9,2539.8,0.38174487]
[1748698086486,6.69557,2539.9,2539.8,0.38174487]
[1748698086680,25.74757,2539.9,2539.8,0.38169175]
[1748698086881,25.74757,2539.9,2539.8,0.38169086]
[1748698087082,25.74757,2539.9,2539.8,0.07745972]
[1748698087279,25.74757,2539.9,2539.8,0.38167202]
[1748698087483,25.74757,2539.9,2539.8,0.07745972]
[1748698089282,2.10957,2539.9,2539.8,0.07745972]
[1748698089487,25.60857,2539.9,2539.8,0.07745972]
[1748698089788,24.28307,2539.9,2539.8,0.07745972]
[1748698090385,24.28307,2539.9,2539.8,0.38167875]
[1748698091090,24.28307,2539.9,2539.8,0.07745972]
[1748698091290,24.28307,2539.9,2539.8,0.38167094]
[1748698091588,24.26907,2539.9,2539.8,0.38166134]
[1748698092089,24.26907,2539.9,2539.8,0.07745972]
[1748698092787,27.47687,2539.9,2539.8,9.72e-06]
[1748698093185,0.78723,2539.4,2539.3,1.55350166]
[1748698093384,0.78723,2539.4,2539.3,1.8580438]
[1748698093385,5.25223,2539.4,2539.3,1.8580438]
[1748698093786,5.25223,2539.4,2539.1,3.2078]
[1748698093787,0.78729,2539.2,2539.1,3.21370633]
[1748698093986,0.78729,2539.2,2539.1,3.51831294]
[1748698094186,4.465,2539.3,2539.1,4.87825015]
[1748698094386,4.465,2539.3,2539.2,1.66452016]
[1748698094588,24.25026,2539.3,2539.2,1.3598]
[1748698094892,24.25026,2539.3,2539.2,1.66443829]
[1748698095096,24.25026,2539.3,2539.2,1.3598]
[1748698095393,23.463,2539.3,2539.2,2.4517694]
[1748698095687,23.463,2539.3,2539.2,2.14709]
[1748698095893,23.463,2539.3,2539.2,2.45127886]
[1748698096104,23.463,2539.3,2539.2,2.14709]
[1748698096391,24.25026,2539.3,2539.2,2.14709]
[1748698096584,24.25026,2539.3,2539.2,2.45126951]
[1748698096786,24.25026,2539.3,2539.2,1.66397951]
[1748698097488,23.463,2539.3,2539.2,2.45127136]
[1748698097795,23.463,2539.3,2539.2,2.45127102]
[1748698097995,24.25026,2539.3,2539.2,2.45127069]
[1748698098296,24.25026,2539.3,2539.2,2.45136498]
[1748698098591,24.25026,2539.3,2539.2,1.66407498]
[1748698099191,24.25026,2539.3,2539.2,1.66417299]
[1748698099395,24.25026,2539.3,2539.2,1.66417266]
[1748698099595,24.25026,2539.3,2539.2,1.3598]
[1748698099896,24.25026,2539.3,2539.2,1.66414241]
[1748698100093,24.25026,2539.3,2539.2,0.3758958]
[1748698100397,24.25026,2539.3,2539.2,0.37603126]
[1748698100987,24.25026,2539.3,2539.2,0.07155339]
[1748698101192,24.25026,2539.3,2539.2,1.72335816]
[1748698101397,24.25026,2539.3,2539.2,1.41885339]
[1748698101591,0.78726,2539.3,2539.2,1.72339701]
[1748698101790,19.71826,2539.3,2539.2,1.72339696]
[1748698101986,19.71826,2539.3,2539.2,1.41885339]
[1748698102285,19.71826,2539.3,2539.2,1.72339897]
[1748698102486,0.78726,2539.3,2539.2,1.72345342]
[1748698102691,18.919,2539.3,2539.2,5.71853095]
[1748698102897,24.17225,2539.4,2539.3,0.78726]
[1748698103099,24.17225,2539.4,2539.3,1.65186539]
[1748698103295,24.17225,2539.4,2539.3,3.22612539]
[1748698103598,24.17225,2539.4,2539.3,2.43886539]
[1748698104393,24.17225,2539.4,2539.3,2.43903207]
[1748698104598,24.17225,2539.4,2539.3,2.4390452]
[1748698104799,24.17225,2539.4,2539.3,3.99254751]
[1748698105098,24.17225,2539.4,2539.3,3.99268066]
[1748698105394,5.25325,2539.4,2539.3,3.99268175]
[1748698105600,5.25325,2539.4,2539.3,3.99269419]
[1748698105791,5.25325,2539.4,2539.3,3.99269648]
[1748698105992,5.25325,2539.4,2539.3,2.43919468]
[1748698106295,5.25325,2539.4,2539.3,2.1343]
[1748698106498,5.25325,2539.4,2539.3,2.43927884]
[1748698106799,5.25325,2539.4,2539.3,2.43927897]
[1748698106998,5.25325,2539.4,2539.3,2.43927099]